bitfinex-derivatives/quotes_SOLF0:USTF0_20250307
["timestamp","ask_amount","ask_price","bid_price","bid_amount"]
[1741346240852,0.05055646,144.19,144.16,0.04753494]
[1741346241656,6.9361,144.17,144.16,0.04753494]
[1741346241852,0.05055646,144.19,144.16,0.04753494]
[1741346242155,6.9361,144.17,144.16,0.04753494]
[1741346243555,6.9358,144.18,144.16,0.04753494]
[1741346243752,0.05055646,144.19,144.16,0.04753494]
[1741346243951,0.05055646,144.19,144.16,18.24768465]
[1741346245657,6.9358,144.18,144.16,18.24768465]
[1741346246051,0.05055646,144.19,144.16,18.24768465]
[1741346246451,6.98585646,144.19,144.16,18.24768465]
[1741346247056,6.98585646,144.19,144.16,25.18418465]
[1741346247249,0.05055646,144.19,144.16,25.18418465]
[1741346247453,0.05055646,144.19,144.16,52.30418465]
[1741346247955,0.05055646,144.19,144.16,27.16753494]
[1741346248349,6.9358,144.18,144.16,27.16753494]
[1741346248853,0.05055646,144.19,144.16,0.04753494]
[1741346249056,6.9361,144.17,144.16,0.04753494]
[1741346250362,0.05055646,144.19,144.16,0.04753494]
[1741346251163,0.05055646,144.19,144.16,18.24768465]
[1741346251563,0.05055646,144.19,144.17,6.9358]
[1741346251861,0.05055646,144.19,144.16,18.24768465]
[1741346252063,6.98575646,144.19,144.16,25.18398465]
[1741346253062,0.05055646,144.19,144.17,6.936]
[1741346253364,0.05055646,144.19,144.16,18.24768465]
[1741346253564,0.05055646,144.19,144.16,25.18398465]
[1741346254262,6.98575646,144.19,144.16,25.18398465]
[1741346254758,0.05055646,144.19,144.16,18.24768465]
[1741346255061,0.05055646,144.19,144.17,6.936]
[1741346255664,0.05055646,144.19,144.16,18.24768465]
[1741346256167,0.05055646,144.19,144.16,0.04753494]
[1741346256555,6.9361,144.17,144.16,0.04753494]
[1741346257759,1.91585646,144.19,144.1,45.14014971]
[1741346257954,1.9696,144.18,144.1,45.14014971]
[1741346258357,1.9696,144.18,144.13,6.938]
[1741346258564,1.9696,144.18,144.12,18.20014971]
[1741346258760,6.937,144.15,144.12,18.20014971]
[1741346259063,6.937,144.15,144.14,0.05209383]
[1741346262167,0.04458531,144.16,144.14,0.05209383]
[1741346262864,6.98138531,144.16,144.14,0.05209383]
[1741346263762,0.04458531,144.16,144.14,0.05209383]
[1741346264760,6.938,144.13,144.1,6.9394]
[1741346264965,6.938,144.13,144.08,18.20014971]
[1741346265453,6.938,144.13,144.08,25.14034971]
[1741346266064,0.04508013,144.12,144.09,0.04678198]
[1741346266366,0.04508013,144.12,144.09,6.98658198]
[1741346267057,0.04508013,144.12,144.09,0.04678198]
[1741346268464,0.04508013,144.12,144.09,6.98638198]
[1741346269573,0.04508013,144.12,144.09,0.04678198]
[1741346269969,6.98368013,144.12,144.09,0.04678198]
[1741346270170,0.04508013,144.12,144.1,6.9393]
[1741346270773,0.04508013,144.12,144.09,25.18663169]
[1741346270975,0.04508013,144.12,144.09,18.24693169]
[1741346271167,6.9393,144.11,144.09,18.24693169]
[1741346271672,0.04508013,144.12,144.09,18.24693169]
[1741346271872,6.98378013,144.12,144.09,18.24693169]
[1741346273278,6.939,144.11,144.09,18.24693169]
[1741346274077,6.9394,144.1,144.09,18.24693169]
[1741346274269,6.9394,144.1,144.09,0.04678198]
[1741346275276,6.9391,144.11,144.09,0.04678198]
[1741346275467,0.04508013,144.12,144.09,0.04678198]
[1741346276370,6.9394,144.1,144.09,0.04678198]
[1741346281871,6.9414,144.06,144.03,51.76274971]
[1741346282377,2.0576,144.1,144.03,51.76274971]
[1741346282679,2.0576,144.1,144.05,11.65648948]
[1741346282878,0.04782447,144.09,144.06,0.04520671]
[1741346283179,0.04782447,144.09,144.07,11.65648948]
[1741346283370,0.04782447,144.09,144.06,0.04520671]
[1741346283875,0.04782447,144.09,144.07,11.65648948]
[1741346284476,0.04782447,144.09,144.06,26.66520671]
[1741346284477,0.04782447,144.09,144.08,25.14017697]
[1741346284977,2.0576,144.14,144.08,18.19977697]
[1741346285178,26.62,144.17,144.1,18.19977697]
[1741346285374,1.8783,144.16,144.1,18.19977697]
[1741346285777,26.62,144.15,144.08,18.19977697]
[1741346286077,0.04824737,144.14,144.12,0.05015993]
[1741346286272,6.938,144.13,144.12,0.05015993]
[1741346286470,0.04824737,144.14,144.12,0.05015993]
[1741346286780,6.98614737,144.14,144.12,0.05015993]
[1741346287077,0.04824737,144.14,144.12,18.2499369]
[1741346287280,46.10459387,144.2,144.13,18.19977697]
[1741346287578,46.10459387,144.2,144.17,18.19977697]
[1741346287778,46.10459387,144.2,144.17,44.89977697]
[1741346287979,46.10459387,144.2,144.17,51.83547697]
[1741346288180,46.10459387,144.2,144.19,18.19977697]
[1741346288383,46.15218257,144.2,144.19,18.19977697]
[1741346288683,46.15218257,144.2,144.19,25.13487697]
[1741346289272,0.0475887,144.2,144.19,25.13487697]
[1741346289479,0.0475887,144.2,144.19,18.19977697]
[1741346289982,0.0475887,144.2,144.17,44.95168309]
[1741346291578,0.0475887,144.2,144.17,51.88738309]
[1741346292288,0.0475887,144.2,144.19,18.19977697]
[1741346293588,0.0475887,144.2,144.19,25.13487697]
[1741346293786,6.9332,144.23,144.19,18.19977697]
[1741346293980,3.9375,144.25,144.18,18.19977697]
[1741346294185,3.9375,144.25,144.17,18.19977697]
[1741346294788,0.05029029,144.22,144.2,0.04660233]
[1741346295486,6.98419029,144.22,144.2,0.04660233]
[1741346296989,0.05029029,144.22,144.2,0.04660233]
[1741346297385,0.05029029,144.22,144.2,26.66660233]
[1741346298288,0.05029029,144.22,144.21,25.13387697]
[1741346299593,0.05029029,144.22,144.21,18.19977697]
[1741346299889,0.05029029,144.22,144.2,26.66660233]
[1741346300887,6.98399029,144.22,144.2,26.66660233]
[1741346301094,0.05029029,144.22,144.2,26.66660233]
[1741346301393,6.9341,144.21,144.2,0.04660233]
[1741346304680,6.9357,144.18,144.15,51.75647697]
[1741346305495,6.935,144.2,144.16,6.9365]
[1741346305890,4.0231,144.24,144.16,6.9365]
[1741346305891,0.05079347,144.19,144.17,0.04973188]
[1741346306306,6.98629347,144.19,144.17,0.04973188]
[1741346306503,0.05079347,144.19,144.17,0.04973188]
[1741346307599,0.05079347,144.19,144.11,44.81977697]
[1741346307895,44.81977697,144.21,144.12,6.9381]
[1741346308097,6.9372,144.15,144.12,6.9381]
[1741346308396,6.9372,144.15,144.12,6.9382]
[1741346308697,6.98437306,144.15,144.12,6.98534855]
[1741346309588,0.04717306,144.15,144.12,0.04714855]
[1741346309797,6.938,144.13,144.12,0.04714855]
[1741346310192,6.98437306,144.15,144.12,0.04714855]
[1741346310399,0.04717306,144.15,144.12,0.04714855]
[1741346311095,0.04717306,144.15,144.13,18.19977697]
[1741346313091,0.04717306,144.15,144.12,0.04714855]
[1741346313801,6.938,144.13,144.12,0.04714855]
[1741346316805,0.04717306,144.15,144.07,44.81977697]
[1741346317005,6.9393,144.11,144.07,44.81977697]
[1741346317207,238.81977697,144.17,144.07,44.81977697]
[1741346317402,6.9387,144.12,144.07,44.81977697]
[1741346317794,6.9387,144.12,144.08,6.9401]
[1741346317999,238.81977697,144.17,144.08,6.9401]
[1741346318000,0.04431063,144.11,144.08,0.04743808]
[1741346318299,6.9393,144.11,144.07,51.76047697]
[1741346318606,6.9399,144.09,144.08,0.05040067]
[1741346320506,0.04971791,144.11,144.08,0.05040067]
[1741346321308,6.98901791,144.11,144.08,0.05040067]
[1741346322310,6.9395,144.1,144.08,0.05040067]
[1741346323214,6.98881791,144.11,144.08,0.05040067]
[1741346324516,0.04971791,144.11,144.08,0.05040067]
[1741346325114,0.04971791,144.11,144.08,6.99050067]
[1741346325808,6.9387,144.12,144.08,6.99050067]
[1741346325809,194.0,144.17,144.09,18.19977697]
[1741346326010,6.0549,144.18,144.11,18.19977697]
[1741346326215,6.9363,144.17,144.13,6.9377]
[1741346326911,0.04779986,144.16,144.14,0.05095951]
[1741346327111,6.98449986,144.16,144.14,0.05095951]
[1741346328119,0.04779986,144.16,144.14,0.05095951]
[1741346328313,0.04779986,144.16,144.15,18.19977697]
[1741346329319,0.04779986,144.16,144.15,25.13677697]
[1741346330324,8.8454,144.22,144.18,6.9354]
[1741346330621,220.62,144.25,144.19,18.19977697]
[1741346330921,6.9332,144.23,144.19,25.13457697]
[1741346331423,0.04623966,144.22,144.2,0.05032442]
[1741346332725,6.9341,144.21,144.2,0.05032442]
[1741346334121,6.9356,144.18,144.17,26.62]
[1741346334520,26.6,144.23,144.15,18.19977697]
[1741346335014,6.9349,144.2,144.16,6.9365]
[1741346335215,194.0,144.25,144.17,18.19977697]
[1741346335423,194.0,144.25,144.17,18.24879469]
[1741346335615,6.9342,144.21,144.17,25.18459469]
[1741346335817,0.05059271,144.22,144.17,18.24879469]
[1741346336223,6.9344,144.21,144.17,25.18479469]
[1741346337521,0.05059271,144.22,144.17,18.24879469]
[1741346337718,0.05059271,144.22,144.17,0.04901772]
[1741346337919,6.9344,144.21,144.17,0.04901772]
[1741346338122,0.05059271,144.22,144.18,6.9353]
[1741346338819,0.05059271,144.22,144.19,6.9349]
[1741346339024,0.05059271,144.22,144.19,18.19977697]
[1741346339217,0.05059271,144.22,144.19,44.79977697]
[1741346339420,0.05059271,144.22,144.2,6.9346]
[1741346339625,0.05059271,144.22,144.19,44.79977697]
[1741346340522,6.9316,144.27,144.21,18.19977697]
[1741346340828,194.0,144.29,144.21,80.19977697]
[1741346341127,6.9316,144.27,144.21,80.19977697]
[1741346341625,6.9316,144.27,144.23,6.933]
[1741346341931,0.04714966,144.25,144.23,6.98263865]
[1741346342430,0.04714966,144.25,144.23,0.04963865]
[1741346343020,6.9327,144.24,144.23,0.04963865]
[1741346344726,0.04714966,144.25,144.17,51.73557697]
[1741346344923,26.6,144.27,144.17,25.13557697]
[1741346345128,18.19977697,144.26,144.17,18.19977697]
[1741346345329,6.9351,144.19,144.16,26.6]
[1741346345933,0.0516452,144.19,144.16,26.65126369]
[1741346346130,0.0516452,144.19,144.16,0.05126369]
[1741346346633,6.9361,144.17,144.16,0.05126369]
[1741346349032,0.0516452,144.19,144.16,0.05126369]
[1741346349228,6.9357,144.18,144.16,0.05126369]
[1741346350840,0.0516452,144.19,144.16,0.05126369]
[1741346350841,6.9361,144.17,144.16,0.05126369]
[1741346351630,6.9383,144.13,144.1,26.6]
[1741346351933,20.17437697,144.18,144.1,26.6]
[1741346352141,6.9403,144.09,144.05,18.19977697]
[1741346352437,6.9403,144.09,144.05,25.14127697]
[1741346352737,6.9391,144.11,144.05,18.19977697]
[1741346352925,0.0457863,144.08,144.07,6.9406]
[1741346353131,2.019,144.14,144.07,44.79977697]
[1741346353330,2.019,144.14,144.09,18.19977697]
[1741346354135,2.019,144.14,144.07,51.74017697]
[1741346354335,0.04576278,144.13,144.1,0.05254664]
[1741346354534,6.9388,144.12,144.1,0.05254664]
[1741346354725,0.04576278,144.13,144.1,0.05254664]
[1741346355733,0.04576278,144.13,144.05,18.19977697]
[1741346355933,2.019,144.14,144.05,44.79977697]
[1741346356640,6.9392,144.11,144.07,6.9409]
[1741346357033,0.05107773,144.1,144.08,0.04609879]
[1741346357636,0.05107773,144.1,144.09,6.9399]
[1741346358338,0.05107773,144.1,144.09,51.73967697]
[1741346359343,195.91,144.17,144.12,6.9382]
[1741346359541,195.91,144.17,144.09,44.79977697]
[1741346359842,6.937,144.15,144.11,6.9387]
[1741346360234,195.91,144.17,144.09,44.79977697]
[1741346360442,0.04828252,144.14,144.13,6.9379]
[1741346361840,0.04828252,144.14,144.12,0.04973679]
[1741346362344,0.04828252,144.14,144.12,6.98813679]
[1741346362731,0.04828252,144.14,144.12,0.04973679]
[1741346363047,6.938,144.13,144.12,0.04973679]
[1741346363539,6.98598252,144.14,144.12,0.04973679]
[1741346364045,0.04828252,144.14,144.12,0.04973679]
[1741346364644,6.98588252,144.14,144.12,0.04973679]
[1741346365344,0.04828252,144.14,144.12,0.04973679]
[1741346366452,0.04828252,144.14,144.13,6.938]
[1741346366948,0.04828252,144.14,144.13,26.6]
[1741346368348,0.04828252,144.14,144.12,0.04973679]
[1741346369847,6.98588252,144.14,144.12,0.04973679]
[1741346370248,0.04828252,144.14,144.12,0.04973679]
[1741346370552,6.98598252,144.14,144.12,0.04973679]
[1741346370952,0.04828252,144.14,144.12,0.04973679]
[1741346371154,6.938,144.13,144.12,0.04973679]
[1741346371455,0.04828252,144.14,144.12,0.04973679]
[1741346372156,6.938,144.13,144.12,0.04973679]
[1741346373254,6.98608252,144.14,144.12,0.04973679]
[1741346374153,0.04828252,144.14,144.12,0.04973679]
[1741346374450,6.98628252,144.14,144.12,0.04973679]
[1741346374655,0.04828252,144.14,144.12,0.04973679]
[1741346377561,6.98588252,144.14,144.12,0.04973679]
[1741346377858,0.04828252,144.14,144.12,0.04973679]
[1741346378058,6.938,144.13,144.12,0.04973679]
[1741346391566,0.04828252,144.14,144.12,6.98823679]
[1741346391758,0.04828252,144.14,144.12,0.04973679]
[1741346392257,6.938,144.13,144.12,0.04973679]
[1741346394465,0.04828252,144.14,144.12,0.04973679]
[1741346395161,11.64911308,144.12,144.06,11.64911308]
[1741346396264,6.9402,144.09,144.08,0.0532228]
[1741346402270,0.04574701,144.1,144.08,0.0532228]
[1741346403077,6.9399,144.09,144.08,0.0532228]
[1741346403278,0.04574701,144.1,144.08,0.0532228]
[1741346403774,0.04574701,144.1,144.08,18.26252832]
[1741346403964,0.04574701,144.1,144.09,6.9399]
[1741346406375,6.98544701,144.1,144.08,0.0532228]
[1741346406983,0.04574701,144.1,144.08,0.0532228]
[1741346408268,6.98544701,144.1,144.08,0.0532228]
[1741346408976,0.04574701,144.1,144.08,0.0532228]
[1741346410281,6.98544701,144.1,144.08,0.0532228]
[1741346411174,0.04574701,144.1,144.08,0.0532228]
[1741346411774,0.04574701,144.1,144.09,6.9399]
[1741346416788,0.04574701,144.1,144.08,18.26252832]
[1741346416986,0.04574701,144.1,144.08,0.0532228]
[1741346417590,6.9399,144.09,144.08,0.0532228]
[1741346419286,0.04574701,144.1,144.02,20.22910552]
[1741346419287,6.9423,144.05,144.02,20.22910552]
[1741346420090,1.8767,144.09,144.01,42.9758896]
[1741346420091,6.9424,144.04,144.01,42.9758896]
[1741346420490,6.98683185,144.04,144.01,43.02687677]
[1741346421190,6.98683185,144.04,144.01,36.08337677]
[1741346422489,6.98683185,144.04,144.02,11.66086956]
[1741346423187,0.04443185,144.04,144.02,11.66086956]
[1741346426897,0.04443185,144.04,144.02,18.60366956]
[1741346427597,0.04443185,144.04,144.03,6.9428]
[1741346427794,0.04443185,144.04,144.02,11.66086956]
[1741346428296,0.04443185,144.04,144.02,18.60386956]
[1741346428601,0.04443185,144.04,144.02,11.66086956]
[1741346430298,0.04443185,144.04,144.02,18.60406956]
[1741346430999,0.04443185,144.04,144.02,11.66086956]
[1741346432100,0.04443185,144.04,144.02,18.60416956]
[1741346433802,0.04443185,144.04,144.03,6.9428]
[1741346434100,0.04443185,144.04,144.02,11.66086956]
[1741346434697,0.04443185,144.04,144.02,18.60396956]
[1741346434910,0.04443185,144.04,144.02,11.66086956]
[1741346435502,0.04443185,144.04,144.02,18.60416956]
[1741346435902,0.04443185,144.04,144.02,11.66086956]
[1741346436204,6.98673185,144.04,144.02,11.66086956]
[1741346436406,0.04443185,144.04,144.02,11.66086956]
[1741346437005,6.98673185,144.04,144.02,11.66086956]
[1741346437305,0.04443185,144.04,144.02,11.66086956]
[1741346437905,6.98723185,144.04,144.02,11.66086956]
[1741346438204,0.04443185,144.04,144.02,11.66086956]
[1741346439206,6.9428,144.03,144.02,11.66086956]
[1741346440809,6.9433,144.02,144.01,0.05098717]
[1741346445111,0.04443185,144.04,144.01,26.63098717]
[1741346445302,0.04443185,144.04,144.02,11.66086956]
[1741346445605,5.9615,144.11,144.02,11.66086956]
[1741346445807,5.9615,144.11,144.07,11.66086956]
[1741346446008,3.9386,144.11,144.09,11.66086956]
[1741346446196,106.28628093,144.13,144.09,11.66086956]
[1741346446403,106.28628093,144.13,144.11,11.66086956]
[1741346446696,0.04764622,144.12,144.11,11.66086956]
[1741346448009,106.28628093,144.13,144.11,38.24086956]
[1741346448312,10.8937,144.21,144.11,38.24086956]
[1741346448506,10.8937,144.21,144.15,18.18152246]
[1741346448807,3.9594,144.21,144.15,26.58]
[1741346449206,3.9594,144.21,144.15,44.76152246]
[1741346449512,0.04584401,144.19,144.17,0.04502777]
[1741346450911,0.04584401,144.19,144.17,18.22655023]
[1741346451206,0.04584401,144.19,144.17,25.16225023]
[1741346451411,0.04584401,144.19,144.17,18.22655023]
[1741346451803,0.04584401,144.19,144.17,25.16255023]
[1741346452406,0.04584401,144.19,144.17,18.22655023]
[1741346454504,6.98124401,144.19,144.17,18.22655023]
[1741346454709,0.04584401,144.19,144.17,0.04502777]
[1741346455411,6.98114401,144.19,144.17,0.04502777]
[1741346455608,0.04584401,144.19,144.17,0.04502777]
[1741346456004,6.9356,144.18,144.17,0.04502777]
[1741346458113,0.04584401,144.19,144.17,0.04502777]
[1741346458418,0.04584401,144.19,144.17,18.22655023]
[1741346460112,0.04584401,144.19,144.17,0.04502777]
[1741346461014,6.9356,144.18,144.17,0.04502777]
[1741346461412,6.98134401,144.19,144.17,0.04502777]
[1741346461614,0.04584401,144.19,144.17,0.04502777]
[1741346464214,0.04584401,144.19,144.17,18.22655023]
[1741346464421,0.04584401,144.19,144.17,44.78655023]
[1741346464716,0.04584401,144.19,144.18,6.9356]
[1741346465524,0.04584401,144.19,144.17,51.72235023]
[1741346465712,0.04584401,144.19,144.17,44.78655023]
[1741346467114,0.04584401,144.19,144.18,6.9356]
[1741346467319,1.9772,144.25,144.17,44.78655023]
[1741346467521,1.9772,144.25,144.19,18.18152246]
[1741346468020,6.9341,144.22,144.19,18.18152246]
[1741346468221,1.9772,144.25,144.17,44.74152246]
[1741346468422,0.05217176,144.22,144.19,0.05147003]
[1741346468618,6.98597176,144.22,144.19,0.05147003]
[1741346469219,0.05217176,144.22,144.19,0.05147003]
[1741346469425,0.05217176,144.22,144.2,6.9345]
[1741346469618,0.05217176,144.22,144.19,18.23299249]
[1741346469921,0.05217176,144.22,144.19,0.05147003]
[1741346470423,6.9346,144.21,144.19,0.05147003]
[1741346470624,0.05217176,144.22,144.19,0.05147003]
[1741346470827,6.9346,144.2,144.19,0.05147003]
[1741346471522,6.9346,144.2,144.14,38.10476751]
[1741346471523,0.05217176,144.22,144.14,38.10476751]
[1741346471723,18.18152246,144.23,144.14,64.64476751]
[1741346471924,18.18152246,144.23,144.14,33.4772]
[1741346472124,18.18152246,144.23,144.14,26.54]
[1741346472521,6.9375,144.14,144.13,38.10476751]
[1741346472930,6.9375,144.14,144.13,31.91316751]
[1741346473125,6.9375,144.14,144.13,16.43466751]
[1741346474136,0.04882009,144.15,144.13,16.43466751]
[1741346474638,0.04882009,144.15,144.12,0.04507578]
[1741346475538,6.938,144.13,144.12,0.04507578]
[1741346476234,0.04882009,144.15,144.12,0.04507578]
[1741346476834,6.98582009,144.15,144.12,0.04507578]
[1741346477540,0.04882009,144.15,144.12,6.98327578]
[1741346478137,0.04882009,144.15,144.13,18.18152246]
[1741346478337,0.04882009,144.15,144.13,20.18042246]
[1741346478739,0.04882009,144.15,144.13,1.9989]
[1741346479038,0.04882009,144.15,144.12,0.04507578]
[1741346479544,6.938,144.13,144.12,0.04507578]
[1741346480340,6.9377,144.14,144.12,0.04507578]
[1741346480738,6.938,144.13,144.12,0.04507578]
[1741346482735,0.04882009,144.15,144.12,0.04507578]
[1741346483334,6.9379,144.14,144.12,0.04507578]
[1741346484439,6.938,144.13,144.12,0.04507578]
[1741346485339,6.9377,144.14,144.12,0.04507578]
[1741346485539,0.04882009,144.15,144.12,0.04507578]
[1741346485846,6.938,144.14,144.12,0.04507578]
[1741346486844,0.04882009,144.15,144.12,0.04507578]
[1741346487047,6.938,144.13,144.12,0.04507578]
[1741346488450,6.9377,144.14,144.12,0.04507578]
[1741346488749,0.04882009,144.15,144.12,0.04507578]
[1741346489642,6.98602009,144.15,144.12,0.04507578]
[1741346489842,0.04882009,144.15,144.12,26.58507578]
[1741346490646,0.04882009,144.15,144.14,11.64078684]
[1741346492553,0.04882009,144.15,144.12,44.77510166]
[1741346493149,6.98602009,144.15,144.12,51.71330166]
[1741346493555,0.04882009,144.15,144.12,44.77510166]
[1741346493853,6.9377,144.14,144.12,26.58507578]
[1741346494150,6.9377,144.14,144.12,0.04507578]
[1741346494453,6.938,144.13,144.12,0.04507578]
[1741346495457,6.9379,144.14,144.12,0.04507578]
[1741346495954,0.04882009,144.15,144.12,0.04507578]
[1741346496155,6.938,144.13,144.12,0.04507578]
[1741346497056,0.04882009,144.15,144.12,0.04507578]
[1741346498346,6.9375,144.14,144.12,0.04507578]
[1741346499553,6.938,144.13,144.12,0.04507578]
[1741346500146,0.04882009,144.15,144.12,26.58507578]
[1741346500347,0.04882009,144.15,144.12,44.77510166]
[1741346500551,0.04882009,144.15,144.14,18.19002588]
[1741346500955,0.04882009,144.15,144.14,25.12752588]
[1741346501252,291.3280727,144.25,144.14,18.19002588]
[1741346501458,3.8472,144.24,144.18,18.19002588]
[1741346501960,6.9335,144.23,144.18,25.12532588]
[1741346502163,3.8472,144.24,144.18,18.19002588]
[1741346502861,0.04999881,144.22,144.2,0.04634577]
[1741346506169,6.98379881,144.22,144.2,0.04634577]
[1741346507365,0.04999881,144.22,144.2,6.98074577]
[1741346507957,0.04999881,144.22,144.2,0.04634577]
[1741346509063,6.98369881,144.22,144.2,0.04634577]
[1741346509461,6.9341,144.21,144.2,0.04634577]
[1741346513765,18.57163556,144.21,144.2,4.577e-05]
[1741346513964,6.9363,144.17,144.15,11.63753556]
[1741346514566,6.9363,144.17,144.14,64.57345405]
[1741346515068,6.98361404,144.17,144.14,64.6216805]
[1741346515565,6.9366,144.16,144.14,71.5590805]
[1741346516073,0.04731404,144.17,144.14,0.04822645]
[1741346516871,0.04731404,144.17,144.14,6.98542645]
[1741346517878,6.98341404,144.17,144.14,6.98542645]
[1741346518782,0.04731404,144.17,144.14,6.98542645]
[1741346519275,0.04731404,144.17,144.14,6.98552645]
[1741346519473,0.04731404,144.17,144.15,18.18774932]
[1741346519871,0.04731404,144.17,144.15,25.12454932]
[1741346521576,0.04731404,144.17,144.15,18.18774932]
[1741346523671,0.04731404,144.17,144.14,0.04822645]
[1741346524482,6.937,144.15,144.14,0.04822645]
[1741346527985,6.938,144.13,144.12,38.03345405]
[1741346528181,30.4626,144.16,144.08,56.22120337]
[1741346529076,0.04795459,144.13,144.11,0.05177956]
[1741346529273,6.9385,144.12,144.11,0.05177956]
[1741346532085,6.9385,144.12,144.11,7.956e-05]
[1741346535581,36.9385,144.12,144.11,7.956e-05]
[1741346536484,48.59573731,144.12,144.11,7.956e-05]
[1741346538284,6.9414,144.06,144.05,38.03345405]
[1741346539082,6.9418,144.05,144.04,76.4063411]
[1741346539283,11.65723731,144.06,144.03,114.60951165]
[1741346539591,11.70671085,144.06,144.03,114.65993388]
[1741346539784,6.9423,144.04,144.03,0.05042223]
[1741346544690,6.9435,144.02,143.99,11.65723731]
[1741346544989,11.65723731,144.04,143.99,18.60173731]
[1741346545185,6.9436,144.02,143.99,18.60173731]
[1741346545786,220.54,144.08,144.01,6.9438]
[1741346545992,11.65723731,144.06,144.01,6.9438]
[1741346546296,11.70292876,144.06,144.03,0.03320902]
[1741346546488,6.9423,144.04,144.03,0.03320902]
[1741346548793,18.59953731,144.04,144.03,0.03320902]
[1741346548994,6.9439,144.01,143.99,11.65723731]
[1741346550095,6.99296386,144.01,143.97,38.19723731]
[1741346550394,6.9444,144.0,143.97,38.19723731]
[1741346550699,0.04906386,144.01,143.97,38.19723731]
[1741346550996,6.99306386,144.01,143.98,6.9449]
[1741346552388,0.04906386,144.01,143.97,18.60283731]
[1741346552592,0.04906386,144.01,143.97,11.65723731]
[1741346552992,6.9445,144.0,143.98,6.9452]
[1741346553793,0.04906386,144.01,143.97,11.65723731]
[1741346554394,6.99296386,144.01,143.98,6.9449]
[1741346554693,6.99296386,144.01,143.97,11.65723731]
[1741346554887,0.04906386,144.01,143.97,11.65723731]
[1741346555093,0.04906386,144.01,143.99,6.9446]
[1741346555900,6.99286386,144.01,143.98,6.945]
[1741346556498,0.04906386,144.01,143.97,11.65723731]
[1741346556686,0.04906386,144.01,143.99,11.65723731]
[1741346556888,0.04906386,144.01,144.0,26.54]
[1741346557093,6.9416,144.06,144.02,6.9432]
[1741346557294,29.07035206,144.08,144.03,11.65723731]
[1741346557697,40.72758937,144.08,144.03,11.65723731]
[1741346558003,40.72758937,144.08,144.01,11.65723731]
[1741346558197,11.65723731,144.06,144.04,0.04581851]
[1741346558600,6.9418,144.05,144.04,0.04581851]
[1741346559706,6.9418,144.05,144.04,1.851e-05]
[1741346561407,0.04798582,144.07,144.04,1.851e-05]
[1741346561595,0.04798582,144.07,144.05,11.65723731]
[1741346562209,0.04798582,144.07,144.04,1.851e-05]
[1741346562608,6.98908582,144.07,144.04,1.851e-05]
[1741346564311,0.04798582,144.07,144.04,1.851e-05]
[1741346564913,6.98898582,144.07,144.04,1.851e-05]
[1741346565104,0.04798582,144.07,144.04,1.851e-05]
[1741346565503,0.04798582,144.07,144.05,11.65723731]
[1741346566705,0.04798582,144.07,144.05,18.59883731]
[1741346566909,0.04798582,144.07,144.05,11.65723731]
[1741346567109,0.04798582,144.07,144.05,18.59883731]
[1741346567607,0.04798582,144.07,144.05,11.65723731]
[1741346568907,0.04798582,144.07,144.05,18.59903731]
[1741346570016,0.04798582,144.07,144.05,11.65723731]
[1741346571918,6.98898582,144.07,144.05,18.59893731]
[1741346572416,0.04798582,144.07,144.05,18.59893731]
[1741346572817,0.04798582,144.07,144.06,6.9414]
[1741346573916,0.04798582,144.07,144.05,11.65723731]
[1741346573917,0.04798582,144.07,144.05,18.59883731]
[1741346574217,0.04798582,144.07,144.05,11.65723731]
[1741346574520,0.04798582,144.07,144.05,18.59883731]
[1741346575819,0.04798582,144.07,144.06,6.9414]
[1741346576213,0.04798582,144.07,144.05,11.65723731]
[1741346576414,0.04798582,144.07,144.05,18.59873731]
[1741346576614,0.04798582,144.07,144.05,11.65723731]
[1741346576913,6.9406,144.08,144.06,26.52]
[1741346577507,11.65723731,144.07,144.03,5.8978]
[1741346577707,11.65723731,144.07,144.03,3.9479]
[1741346577918,0.05301211,144.06,144.04,0.04706567]
[1741346578620,6.9421,144.05,144.04,0.04706567]
[1741346578823,0.05301211,144.06,144.0,11.65723731]
[1741346579024,6.9426,144.04,144.01,6.9437]
[1741346579219,6.9426,144.04,144.02,11.65723731]
[1741346579624,6.942,144.05,144.02,18.60033731]
[1741346580326,6.942,144.05,144.02,11.65723731]
[1741346581024,6.9426,144.04,144.02,11.65723731]
[1741346581322,0.05301211,144.06,144.02,11.65723731]
[1741346583329,0.05301211,144.06,144.0,11.65723731]
[1741346583531,0.05301211,144.06,144.02,11.65723731]
[1741346583824,6.9421,144.05,144.02,18.60023731]
[1741346584420,0.05301211,144.06,144.02,18.60023731]
[1741346584619,6.9426,144.04,144.02,11.65723731]
[1741346584827,0.05301211,144.06,144.02,11.65723731]
[1741346586128,6.9426,144.04,144.02,11.65723731]
[1741346587932,6.9428,144.03,144.02,11.65723731]
[1741346589716,11.71024942,144.06,144.0,11.65723731]